bitfinex-derivatives/quotes_SOLF0:USTF0_20240907
["timestamp","ask_amount","ask_price","bid_price","bid_amount"]
[1725667201965,348.0696,125.16,124.96,4.0394]
[1725667203465,4.0696,125.16,124.96,4.0394]
[1725667204364,1.26648289,125.15,124.97,1.46955743]
[1725667204968,2.53299131,125.15,124.97,1.46955743]
[1725667205168,26.55299131,125.15,124.97,1.46955743]
[1725667205567,344.0,125.14,124.97,1.46955743]
[1725667205861,48.81584862,125.13,124.97,1.46955743]
[1725667206361,1.4238,125.12,124.97,1.46955743]
[1725667206767,2.8539,125.11,124.97,1.46955743]
[1725667207066,24.02,125.1,124.97,1.46955743]
[1725667208370,24.02,125.1,124.96,8.07435122]
[1725667209265,24.02,125.1,124.96,4.0394]
[1725667209463,24.02,125.08,124.96,4.0394]
[1725667209668,1.4188,125.07,124.96,1.3341]
[1725667209870,1.4188,125.07,124.84,2.7547]
[1725667210169,25.3431,125.06,124.84,4.1868]
[1725667210372,1.4222,125.05,124.85,1.47053853]
[1725667211773,1.4222,125.05,124.85,9.47953853]
[1725667211973,1.4222,125.05,124.86,1.47053853]
[1725667212175,1.4222,125.05,124.87,1.4705897]
[1725667212369,1.4222,125.05,124.88,1.4705897]
[1725667212571,1.4222,125.05,124.89,2.7412]
[1725667212872,1.4222,125.05,124.9,1.386]
[1725667213074,1.4222,125.05,124.9,5.32012378]
[1725667213265,1.4222,125.05,124.9,1.386]
[1725667213573,24.02,125.04,124.9,1.386]
[1725667213773,24.02,125.02,124.9,5.44338489]
[1725667214073,2.5895,125.01,124.9,5.44338489]
[1725667214772,3.93132943,125.0,124.9,5.44338489]
[1725667215876,3.98935496,124.99,124.9,5.44338489]
[1725667216170,2.5895,125.01,124.9,5.44338489]
[1725667216765,24.02,125.0,124.9,5.44338489]
[1725667216965,25.4384,125.0,124.9,5.44338489]
[1725667217575,29.459212,125.0,124.9,5.44338489]
[1725667217775,29.459212,125.0,124.9,1.386]
[1725667220676,29.459212,125.0,124.83,4.01015767]
[1725667220881,29.459212,125.0,124.84,4.2136]
[1725667221075,29.459212,125.0,124.84,8.22817156]
[1725667224788,24.02,124.99,124.85,1.47100609]
[1725667225880,1.4184,125.0,124.85,1.47100609]
[1725667225881,25.4384,125.0,124.85,1.47100609]
[1725667227884,25.4384,125.0,124.84,16.23717156]
[1725667228080,1.4184,125.0,124.85,1.47067481]
[1725667229383,2.5895,125.01,124.85,1.47067481]
[1725667229577,2.5895,125.01,124.86,1.0]
[1725667229777,2.5895,125.01,124.87,1.47057386]
[1725667230286,6.5903,125.01,124.98,4.0015]
[1725667230690,6.5903,125.01,124.95,3.91220811]
[1725667230886,6.5903,125.01,124.97,4.0018]
[1725667231388,30.62654584,125.01,124.95,4.0023]
[1725667231691,1.3974,125.0,124.89,3.9969]
[1725667231890,4.0015,124.99,124.95,4.0023]
[1725667232392,5.3985,125.0,124.96,4.0021]
[1725667232786,1.3974,125.0,124.93,4.02905016]
[1725667232990,1.3974,125.0,124.97,4.0017]
[1725667233183,1.3974,125.0,124.93,3.94053348]
[1725667233493,2.5895,125.01,125.0,4.0009]
[1725667233687,1.2949,125.01,125.0,4.0009]
[1725667233894,1.2949,125.01,124.94,1.4355]
[1725667234090,1.2949,125.01,124.98,4.0014]
[1725667234284,1.2949,125.01,124.94,2.8367]
[1725667234487,24.02,125.0,124.94,1.4355]
[1725667234688,28.0212,125.0,124.96,4.002]
[1725667235288,28.0212,125.0,124.94,1.4355]
[1725667235593,4.0012,125.0,124.93,3.90331711]
[1725667235793,5.4039,125.0,124.96,4.002]
[1725667236392,1.2949,125.01,124.94,3.93613155]
[1725667236698,1.2949,125.01,124.91,2.794]
[1725667236897,1.4027,125.04,124.91,6.72501488]
[1725667237091,1.3138,125.07,124.91,10.803]
[1725667237290,344.0,125.13,124.92,9.47902756]
[1725667237291,1.4027,125.09,124.92,9.47902756]
[1725667237491,35.15922604,125.27,124.93,1.47002756]
[1725667237687,4.02985045,125.17,124.96,8.009]
[1725667237887,1.3138,125.15,124.97,12.32072756]
[1725667238093,3.997,125.13,125.08,3.9982]
[1725667238391,1.3138,125.15,124.98,1.3239]
[1725667238587,3.9976,125.11,125.06,3.999]
[1725667238993,3.9981,125.09,125.03,3.9997]
[1725667239198,4.01344455,125.13,124.99,108.63144905]
[1725667239199,1.3306,125.1,124.99,108.63144905]
[1725667239395,1.3138,125.08,124.99,112.55315119]
[1725667239598,5.3122,125.08,124.99,112.55315119]
[1725667239794,1.3138,125.08,124.99,112.55315119]
[1725667240198,1.3138,125.08,125.02,4.0001]
[1725667240398,1.3138,125.08,124.99,108.63144905]
[1725667241505,1.3138,125.08,124.98,5.41795389]
[1725667242097,1.3138,125.08,124.98,1.3239]
[1725667242697,3.9999,125.04,124.99,4.0012]
[1725667243005,3.9133565,125.06,124.97,1.4069]
[1725667243202,3.9999,125.04,124.98,4.0013]
[1725667244305,3.97135882,125.06,124.93,1.3982]
[1725667244501,1.4106,125.03,124.93,1.3982]
[1725667244701,4.0012,125.0,124.95,4.0024]
[1725667244995,2.8132,125.02,124.95,4.0024]
[1725667245194,2.8132,125.02,124.91,4.05265866]
[1725667245504,2.8132,125.02,124.9,1.3392]
[1725667245696,4.0024,124.96,124.9,1.3392]
[1725667245902,4.0024,124.96,124.91,4.0036]
[1725667246101,4.0024,124.96,124.9,5.43311075]
[1725667246703,4.0024,124.96,124.92,4.0033]
[1725667246908,4.002,124.97,124.92,4.0033]
[1725667248309,4.0026,124.95,124.82,111.30915058]
[1725667248505,4.0026,124.95,124.83,5.63240948]
[1725667248705,4.0026,124.95,124.83,4.1613]
[1725667249209,4.0026,124.95,124.9,4.004]
[1725667249403,4.0029,124.94,124.89,3.96341159]
[1725667249613,4.2242,124.96,124.83,4.1613]
[1725667249811,4.0031,124.94,124.89,4.0043]
[1725667250007,4.0031,124.94,124.89,8.00133714]
[1725667251914,4.0032,124.93,124.89,8.00133714]
[1725667252109,4.0032,124.93,124.89,4.0043]
[1725667255508,4.003,124.94,124.9,4.0042]
[1725667256513,4.2242,124.96,124.88,4.05252757]
[1725667256713,4.2242,124.96,124.83,4.1613]
[1725667257010,4.2242,124.96,124.84,1.47110837]
[1725667257209,1.4148,124.96,124.84,5.53284441]
[1725667257409,1.4148,124.96,124.85,1.47110837]
[1725667257616,1.4148,124.96,124.92,4.0032]
[1725667258018,1.4148,124.96,124.9,3.98086166]
[1725667258217,5.4171,124.96,124.92,4.0033]
[1725667259017,1.4148,124.96,124.93,4.0032]
[1725667260512,1.4148,124.96,124.94,4.0029]
[1725667260914,2.7289,125.02,124.9,3.98046129]
[1725667261120,4.0014,124.99,124.95,4.0024]
[1725667261515,1.3659,125.01,124.85,8.0115]
[1725667261822,1.3659,125.01,124.94,4.0027]
[1725667261823,4.0017,124.98,124.94,4.0027]
[1725667263419,4.00560288,124.99,124.94,4.0027]
[1725667263720,1.3659,125.01,124.94,4.0027]
[1725667264520,4.0019,124.98,124.94,4.0027]
[1725667265123,4.08685162,124.99,124.94,4.0027]
[1725667265321,4.0018,124.98,124.94,4.0027]
[1725667267222,4.0019,124.97,124.94,4.0027]
[1725667267615,1.3659,125.01,124.95,4.0025]
[1725667268419,4.0018,124.98,124.95,4.0025]
[1725667269723,1.3659,125.01,124.99,4.0012]
[1725667270027,1.3659,125.01,124.92,3.99879879]
[1725667270226,5.3667,125.01,124.9,3.9856]
[1725667270421,5.3667,125.01,124.9,7.91987477]
[1725667270422,1.3659,125.01,124.9,7.91987477]
[1725667270829,4.0011,125.0,124.96,4.0021]
[1725667272222,4.0013,124.99,124.9,7.91987477]
[1725667272420,1.3659,125.01,124.9,7.91987477]
[1725667273027,4.0018,124.98,124.95,4.0025]
[1725667275124,1.3659,125.01,124.95,4.0025]
[1725667275332,4.0014,124.99,124.96,4.0022]
[1725667276031,4.0011,125.0,124.9,7.91987477]
[1725667276227,1.3659,125.01,124.9,7.91987477]
[1725667276626,1.3659,125.01,124.98,4.0014]
[1725667277226,5.3666,125.01,124.98,4.0014]
[1725667278334,4.0007,125.01,124.9,7.91987477]
[1725667279826,5.3709,125.02,124.9,7.91987477]
[1725667280034,133.99182117,125.03,124.91,8.0076]
[1725667280229,137.99202117,125.03,124.91,8.0076]
[1725667280629,137.99202117,125.03,124.99,4.0011]
[1725667280828,133.99182117,125.03,124.98,4.06338753]
[1725667281034,1.3445,125.07,125.01,4.0004]
[1725667281328,1.3445,125.07,124.98,4.07499263]
[1725667281530,1.4145,125.08,125.05,3.9993]
[1725667281731,1.3051,125.12,124.99,2.7605]
[1725667282031,3.9983,125.09,125.0,1.3213]
[1725667282227,4.0222,125.12,125.05,3.9993]
[1725667282426,28.0422,125.12,125.05,3.9993]
[1725667283233,3.9983,125.09,125.05,3.9993]
[1725667283434,28.0422,125.12,125.0,1.3213]
[1725667283630,3.9979,125.1,125.0,1.3213]
[1725667284330,4.0222,125.12,125.0,1.3213]
[1725667284535,2.7196,125.12,125.08,3.9982]
[1725667284737,25.3403,125.15,125.0,1.3213]
[1725667284943,2.7643,125.16,125.15,0.03592752]
[1725667286038,6.7602,125.16,125.15,0.03592752]
[1725667286243,30.7802,125.16,125.15,0.03592752]
[1725667287356,6.7602,125.16,125.15,0.03592752]
[1725667290539,30.7802,125.16,125.15,0.03592752]
[1725667290745,26.7843,125.16,125.07,3.98608876]
[1725667290944,2.7643,125.16,125.01,2.7756]
[1725667291144,2.7643,125.16,125.1,3.9976]
[1725667291350,3.9967,125.14,125.1,3.9976]
[1725667293449,24.02,125.22,125.01,10.7846]
[1725667293643,3.92795787,125.21,125.02,1.46860082]
[1725667294043,3.995,125.19,125.15,3.9959]
[1725667294445,3.94253747,125.21,125.15,3.9959]
[1725667294650,3.9947,125.2,125.15,3.9959]
[1725667294943,28.0147,125.2,125.16,3.9958]
[1725667295945,3.9947,125.2,125.16,3.9958]
[1725667296452,3.9947,125.2,125.17,3.9954]
[1725667296646,28.0144,125.21,125.17,3.9954]
[1725667296843,24.02,125.21,125.17,3.9954]
[1725667297042,28.0144,125.21,125.17,3.9954]
[1725667297253,28.0144,125.21,125.13,4.0096717]
[1725667297453,24.02,125.21,125.06,7.9976]
[1725667297747,1.3982,125.23,125.07,5.64337263]
[1725667297949,24.02,125.28,125.08,1.46837263]
[1725667298252,3.9931,125.25,125.21,3.9942]
[1725667299252,3.9936,125.24,125.11,150.38910914]
[1725667299453,24.02,125.24,125.11,150.38910914]
[1725667299950,3.9938,125.23,125.18,3.995]
[1725667300255,24.02,125.24,125.11,150.38910914]
[1725667300754,3.9944,125.21,125.17,3.9953]
[1725667300955,24.02,125.24,125.15,3.96540105]
[1725667301156,24.02,125.24,125.11,150.38910914]
[1725667301352,3.9947,125.2,125.16,3.9958]
[1725667303753,24.02,125.24,125.15,4.05289957]
[1725667303957,24.02,125.24,125.11,150.38910914]
[1725667304359,3.9937,125.23,125.18,3.9949]
[1725667305058,3.9937,125.23,125.19,3.9948]
[1725667306849,24.02,125.24,125.16,3.93000682]
[1725667307048,24.02,125.24,125.05,8.009]
[1725667307250,24.02,125.24,125.14,3.9965]
[1725667307454,24.02,125.24,125.09,4.05595073]
[1725667307855,24.02,125.24,125.12,3.997]
[1725667308056,3.996,125.16,125.12,3.997]
[1725667308262,24.02,125.15,125.12,3.997]
[1725667308650,24.02,125.15,125.09,4.05595073]
[1725667308651,28.0164,125.15,125.11,3.9974]
[1725667308855,24.02,125.16,125.09,4.05595073]
[1725667309057,3.9961,125.16,125.12,3.9969]
[1725667309562,3.9961,125.16,125.09,4.01918381]
[1725667309963,3.9961,125.16,125.12,3.9969]
[1725667310463,3.9961,125.16,125.08,4.0624]
[1725667310464,3.9963,125.15,125.11,3.9973]
[1725667310756,28.0307,125.17,125.08,2.7157]
[1725667310965,3.9966,125.14,125.11,3.9973]
[1725667311166,28.0307,125.17,125.08,2.7157]
[1725667311467,3.9959,125.16,125.08,2.7157]
[1725667311662,28.0307,125.17,125.12,3.9969]
[1725667312056,3.9959,125.16,125.12,3.9969]
[1725667312251,3.9959,125.16,125.13,3.9968]
[1725667312461,3.9961,125.16,125.08,2.7157]
[1725667313558,3.9961,125.16,125.12,3.9969]
[1725667314563,3.9961,125.16,125.08,2.7157]
[1725667314759,32.0264,125.17,125.08,2.7157]
[1725667314962,7.986,125.25,125.08,4.1177]
[1725667315167,4.0568,125.24,125.14,3.9962]
[1725667315466,4.0568,125.24,125.08,4.1177]
[1725667315467,3.9951,125.19,125.08,4.1177]
[1725667315761,3.9951,125.19,125.15,3.9959]
[1725667316658,24.02,125.2,125.15,3.9959]
[1725667317354,3.995,125.19,125.08,4.1177]
[1725667317567,24.02,125.2,125.08,4.1177]
[1725667317962,24.02,125.23,125.08,4.1177]
[1725667318459,4.0568,125.24,125.08,4.1177]
[1725667318662,3.98849328,125.23,125.08,4.1177]
[1725667319367,24.02,125.22,125.18,3.995]
[1725667319963,28.014,125.22,125.18,3.995]
[1725667320560,3.994,125.22,125.18,3.995]
[1725667322863,3.994,125.22,125.19,3.9949]
[1725667324073,28.00849328,125.23,125.1,155.38631565]
[1725667324268,28.00849328,125.23,125.08,4.1177]
[1725667324269,28.00849328,125.23,125.08,2.7184]
[1725667324676,3.9953,125.18,125.14,3.9963]
[1725667324866,28.00849328,125.23,125.14,3.9963]
[1725667325262,1.26844609,125.22,125.14,3.9963]
[1725667325472,3.9957,125.17,125.14,3.9963]
[1725667326273,3.9959,125.16,125.13,3.9967]
[1725667326471,24.02,125.15,125.13,3.9967]
[1725667327874,5.4152,125.16,125.13,3.9967]
[1725667328273,1.4193,125.16,125.11,3.9972]
[1725667328468,6.92636092,125.15,125.08,1.3164]
[1725667328665,6.92636092,125.15,125.07,3.99904147]
[1725667329265,3.9968,125.13,125.1,3.9976]
[1725667329970,3.9968,125.13,125.1,3.94497436]
[1725667330171,3.9971,125.12,125.09,3.998]
[1725667334571,3.9971,125.12,125.08,3.9983]
[1725667335279,3.9975,125.11,125.08,3.9983]
[1725667335880,3.9979,125.1,125.06,3.9989]
[1725667337681,3.9975,125.11,125.08,3.9984]
[1725667339878,3.9972,125.12,125.08,3.9984]
[1725667341673,3.9975,125.11,125.08,3.9984]
[1725667341879,30.94636092,125.15,125.03,1.3821]
[1725667342281,3.9983,125.09,125.03,1.3821]
[1725667342477,30.94636092,125.15,125.05,3.9992]
[1725667342678,38.93876092,125.15,125.02,1.3495]
[1725667342883,24.02,125.13,125.0,3.91416526]
[1725667343081,24.02,125.13,125.02,4.0]
[1725667343283,3.9986,125.08,125.0,3.99312399]
[1725667343585,3.9986,125.08,125.05,3.9993]
[1725667343785,24.02,125.13,124.97,6.83023781]
[1725667343983,24.02,125.13,124.97,2.7748]
[1725667344291,3.9982,125.09,124.97,2.7748]
[1725667344488,3.9982,125.09,124.97,6.73944144]
[1725667344690,3.9982,125.09,124.97,2.7748]
[1725667344985,3.9982,125.09,125.05,3.9992]
[1725667346586,3.9979,125.1,125.02,3.99464024]
[1725667346789,24.02,125.13,124.97,2.7748]
[1725667346986,24.02,125.13,124.97,6.71889587]
[1725667347489,3.9979,125.1,125.06,3.9988]
[1725667347684,24.02,125.13,125.06,3.9988]
[1725667348487,24.02,125.13,124.97,6.71889587]
[1725667348694,3.9985,125.08,124.97,6.71889587]
[1725667348893,3.9985,125.08,125.04,3.9994]
[1725667350596,3.9985,125.08,125.05,3.9992]
[1725667352090,24.02,125.13,124.98,8.0032]
[1725667352689,3.9982,125.09,125.06,3.9989]
[1725667358704,3.9979,125.1,125.06,3.9989]
[1725667360399,3.9979,125.1,125.07,3.9987]
[1725667362805,3.9989,125.07,125.04,3.9994]
[1725667363201,1.3626,125.09,124.97,6.71889587]
[1725667363402,2.6048,125.08,124.97,6.71889587]
[1725667363702,24.02,125.07,124.97,6.71889587]
[1725667364107,3.9992,125.06,125.02,4.0]
[1725667364404,3.9992,125.06,124.97,6.71889587]
[1725667365207,1.3626,125.09,124.97,6.71889587]
[1725667365504,26.6248,125.13,124.98,1.46950994]
[1725667365706,30.6218,125.13,124.98,1.46950994]
[1725667365908,30.6218,125.13,125.08,3.9981]
[1725667366211,3.9973,125.12,125.05,3.98153001]
[1725667366410,3.9973,125.12,124.98,8.003]
[1725667366606,3.9973,125.12,125.07,3.9985]
[1725667367306,26.6248,125.13,125.08,3.9982]
[1725667368411,3.9971,125.12,125.08,3.9982]
[1725667368711,26.6248,125.13,125.07,3.9986]
[1725667369810,3.9977,125.11,125.07,3.9986]
[1725667370012,3.9977,125.11,125.08,3.9984]
[1725667372507,3.9972,125.12,125.09,3.9981]
[1725667372712,3.9972,125.12,125.06,2.6747]
[1725667373313,3.9972,125.12,125.06,6.70173122]
[1725667374113,1.2961,125.21,125.06,6.70173122]
[1725667374303,2.6236,125.2,125.07,1.318]
[1725667374509,3.9964,125.15,125.11,3.9972]
[1725667374713,3.92866465,125.16,125.11,3.9972]
[1725667374902,2.6236,125.2,125.11,3.9972]
[1725667375505,3.9961,125.16,125.07,1.318]
[1725667376414,3.9961,125.16,125.12,3.9969]
[1725667377210,3.9961,125.16,125.13,3.9967]
[1725667377406,2.6236,125.2,125.07,1.318]
[1725667377607,24.02,125.22,125.07,1.318]
[1725667377814,3.9942,125.22,125.07,1.318]
[1725667378010,1.3132,125.23,125.07,1.318]
[1725667378207,1.3132,125.23,125.08,1.0]
[1725667378417,8.34320626,125.34,125.08,1.0]
[1725667378418,3.9932,125.25,125.08,1.0]
[1725667378710,7.979,125.36,125.1,7.9951]
[1725667378711,4.0415,125.33,125.1,7.9951]
[1725667378909,3.9935,125.24,125.19,3.9946]
[1725667379217,3.9935,125.24,125.12,151.2373012]
[1725667379218,1.3132,125.27,125.13,4.1175]
[1725667379416,3.9913,125.31,125.13,16.11126501]
[1725667379617,2.7283,125.35,125.14,1.46745058]
[1725667379919,5.3048,125.3,125.14,1.0]
[1725667380110,1.3132,125.3,125.14,1.0]
[1725667380312,2.7283,125.35,125.15,1.4673367]
[1725667380907,2.7283,125.35,125.22,3.9939]
[1725667381112,24.02,125.34,125.22,3.9939]
[1725667381409,24.02,125.34,125.23,3.98538308]
[1725667381819,28.01576792,125.34,125.23,3.98538308]
[1725667382221,24.02,125.33,125.14,8.996]
[1725667382720,24.02,125.33,125.18,3.9952]
[1725667383119,24.02,125.32,125.13,8.11526501]
[1725667383318,25.2833641,125.32,125.13,8.11526501]
[1725667383524,1.26346586,125.31,125.13,8.11526501]
[1725667383919,1.3698,125.3,125.13,8.11526501]
[1725667384321,1.3661,125.29,125.13,8.11526501]
[1725667384629,1.3884,125.28,125.13,8.11526501]
[1725667385826,1.3884,125.28,125.15,3.9961]
[1725667386423,1.3884,125.28,125.13,12.11186501]
[1725667386624,1.26388507,125.27,125.13,8.11526501]
[1725667386825,25.28388507,125.27,125.13,8.11526501]
[1725667387130,3.9943,125.21,125.14,3.9962]
[1725667387329,3.9943,125.21,125.13,8.11526501]
[1725667387631,3.9939,125.22,125.16,3.9958]
[1725667388129,4.08676195,125.27,125.13,8.11526501]
[1725667388334,128.54934292,125.28,125.15,3.9961]
[1725667388531,1.26383731,125.27,125.15,3.9961]
[1725667388728,5.19047632,125.27,125.15,3.9961]
[1725667388919,3.92663901,125.27,125.15,3.9961]
[1725667389233,128.54934292,125.28,125.15,3.9961]
[1725667389433,1.26391208,125.27,125.15,3.9961]
[1725667389633,1.26391208,125.27,125.16,3.9957]
[1725667389634,5.22571382,125.27,125.16,3.9957]
[1725667389828,104.52934292,125.28,125.16,3.9957]
[1725667390029,1.26382848,125.27,125.16,3.9957]
[1725667390232,3.9942,125.22,125.16,3.9957]
[1725667390725,3.9881738,125.27,125.15,3.9961]
[1725667390933,128.54934292,125.28,125.13,8.11526501]
[1725667391125,1.26389229,125.27,125.13,8.11526501]
[1725667391322,3.9933,125.24,125.13,8.11526501]
[1725667391829,104.52934292,125.28,125.13,8.11526501]
[1725667392936,3.9934,125.24,125.2,3.9945]
[1725667394130,3.93839659,125.26,125.19,3.9948]
[1725667394324,128.54934292,125.28,125.19,3.9948]
[1725667394529,3.9935,125.24,125.13,8.11526501]
[1725667395537,3.9935,125.24,125.19,3.9946]
[1725667396732,3.9935,125.24,125.2,3.9944]
[1725667396935,3.9731542,125.26,125.13,8.11526501]
[1725667397237,104.52934292,125.28,125.13,8.11526501]
[1725667397631,3.9936,125.23,125.19,3.9947]
[1725667398637,3.9935,125.24,125.13,8.11526501]
[1725667399139,104.52934292,125.28,125.13,8.11526501]
[1725667399341,104.52934292,125.28,125.13,16.10846501]
[1725667399938,104.52934292,125.28,125.22,3.9937]
[1725667400329,3.9928,125.26,125.21,3.994]
[1725667400537,3.9928,125.26,125.13,16.10846501]
[1725667401042,3.993,125.25,125.13,16.10846501]
[1725667401540,3.993,125.25,125.21,3.9941]
[1725667403039,4.01373981,125.27,125.13,16.10846501]
[1725667403235,128.54934292,125.28,125.13,8.11526501]
[1725667403943,3.9938,125.23,125.19,3.9949]
[1725667404442,3.9941,125.22,125.18,3.995]
[1725667405336,4.01973047,125.23,125.13,8.11526501]
[1725667405638,1.3632,125.23,125.13,8.11526501]
[1725667405840,3.9948,125.2,125.16,3.9958]
[1725667406237,3.9946,125.2,125.16,3.9957]
[1725667406539,5.29930782,125.22,125.13,8.11526501]
[1725667407431,5.29930782,125.22,125.16,3.9958]
[1725667407432,3.9947,125.2,125.16,3.9958]
[1725667408540,3.9949,125.19,125.15,3.996]
[1725667409138,3.9947,125.2,125.16,3.9958]
[1725667410741,3.9944,125.21,125.13,8.11526501]
[1725667411443,3.9946,125.2,125.16,3.9956]
[1725667412941,1.3632,125.23,125.13,8.11526501]
[1725667413145,1.3033,125.24,125.13,8.11526501]
[1725667414443,5.2967,125.24,125.13,8.11526501]
[1725667414644,1.3033,125.24,125.13,8.11526501]
[1725667414846,3.9943,125.21,125.13,8.11526501]
[1725667415046,1.3033,125.24,125.13,8.11526501]
[1725667415449,3.9944,125.21,125.13,8.11526501]
[1725667416144,3.9944,125.21,125.17,3.9953]
[1725667416749,3.9946,125.2,125.17,3.9953]
[1725667417053,3.9946,125.2,125.16,3.9957]
[1725667421055,3.995,125.19,125.15,3.996]
[1725667422361,1.3033,125.24,125.12,151.2373012]
[1725667422562,1.3033,125.24,125.13,4.05258144]
[1725667422955,3.9953,125.18,125.15,3.9961]
[1725667424657,1.3033,125.24,125.13,4.05258144]
[1725667424869,1.3033,125.24,125.12,151.2373012]
[1725667425762,1.3033,125.24,125.15,3.996]
[1725667425956,1.3033,125.24,125.12,151.2373012]
[1725667426478,1.3033,125.24,125.15,3.9959]
[1725667427165,3.9952,125.18,125.15,3.9959]
[1725667427362,3.9952,125.18,125.16,3.9958]
[1725667427558,28.00534313,125.2,125.16,3.9958]
[1725667427863,1.3033,125.24,125.17,3.9954]
[1725667428363,3.9947,125.2,125.17,3.9954]
[1725667429262,3.995,125.19,125.16,3.9958]
[1725667429462,28.01165747,125.2,125.13,5.4825954]
[1725667430058,3.9952,125.18,125.15,3.9961]
[1725667430356,28.01165747,125.2,125.13,5.4825954]
[1725667430670,3.995,125.19,125.16,3.9957]
[1725667432467,1.3033,125.24,125.13,5.4825954]
[1725667433859,3.9946,125.2,125.17,3.9953]
[1725667434465,3.9944,125.21,125.13,5.4825954]
[1725667434665,3.9944,125.21,125.14,1.4301]
[1725667435169,3.9944,125.21,125.13,6.9127954]
[1725667435170,23.99,125.2,125.13,1.4261]
[1725667435370,28.06926899,125.19,125.13,1.4261]
[1725667435571,3.9953,125.18,125.15,3.9961]
[1725667440174,3.9955,125.17,125.14,3.9963]
[1725667440377,28.06926899,125.19,125.13,1.4261]
[1725667440867,3.9954,125.18,125.13,1.4261]
[1725667441268,3.9954,125.18,125.13,5.49219123]
[1725667441478,3.9954,125.18,125.14,3.9963]
[1725667441769,3.9955,125.17,125.14,3.9963]
[1725667441972,28.06926899,125.19,125.08,1.4301]
[1725667442165,1.3299,125.16,125.06,4.02703122]
[1725667442372,3.9976,125.11,125.02,1.3267]
[1725667442675,3.9976,125.11,125.02,5.33804924]
[1725667442865,3.9976,125.11,125.02,1.3267]
[1725667443065,3.9976,125.11,125.06,3.9987]
[1725667443270,3.9976,125.11,125.02,1.3267]
[1725667443475,3.9976,125.11,125.02,5.26932207]
[1725667444975,3.9976,125.11,125.07,3.9986]
[1725667447177,1.4279,125.15,125.02,5.26932207]
[1725667447478,8.31350405,125.14,125.02,5.26932207]
[1725667447674,12.31050405,125.13,125.09,3.998]
[1725667447975,3.997,125.13,125.09,3.998]
[1725667448677,1.4279,125.15,125.02,5.26932207]
[1725667448879,32.30358771,125.14,125.02,5.26932207]
[1725667449071,8.31358771,125.13,125.02,5.26932207]
[1725667449275,3.9978,125.1,125.06,3.9988]
[1725667450078,3.9978,125.1,125.07,3.9987]
[1725667450982,3.9976,125.11,125.07,3.9987]
[1725667451675,3.9973,125.12,125.02,5.26932207]
[1725667451880,3.9973,125.12,125.08,3.9981]
[1725667452782,3.9974,125.11,125.07,3.9986]
[1725667453978,3.93355496,125.12,125.02,5.26932207]
[1725667454178,8.31415869,125.11,125.02,5.26932207]
[1725667454384,3.91844136,125.12,125.02,5.26932207]
[1725667454584,3.9979,125.1,125.06,3.9988]
[1725667455184,1.4279,125.15,125.02,5.26932207]
[1725667455587,1.3299,125.16,125.02,5.26932207]
[1725667455785,8.31272056,125.15,125.02,5.26932207]
[1725667455985,1.3299,125.16,125.02,5.26932207]
[1725667456182,1.3299,125.16,125.12,3.9969]
[1725667456386,1.3299,125.16,125.09,3.96841638]
[1725667456581,1.3299,125.16,125.04,7.9994]
[1725667456887,1.3299,125.16,125.12,3.9968]
[1725667457086,1.3299,125.16,125.09,3.92923597]
[1725667457284,1.3299,125.16,125.13,3.9966]
[1725667458291,1.3299,125.16,125.14,3.9964]
[1725667458688,1.3299,125.16,125.04,7.9994]
[1725667458891,1.3299,125.16,125.13,3.9966]
[1725667459098,1.3299,125.16,125.09,4.00255866]
[1725667459393,23.99,125.22,125.02,5.26932207]
[1725667459586,23.99,125.22,125.03,1.46839576]
[1725667459587,8.3110257,125.21,125.03,1.46839576]
[1725667459782,1.2997,125.22,125.21,3.9942]
[1725667459983,8.31028915,125.22,125.21,3.9942]
[1725667460493,8.31028915,125.22,125.16,3.92142031]